Cogmind - Beta 15 @@@ ROGUE MODE // 2025.10.16 @ 00:10:33 Player: GolbalwarmingLord Result: Destroyed by Y-45 Defender with Heavy Assault Rifle Performance ------------- Evolutions (1) 500 Regions Visited (2) 400 Robots Destroyed (27) 135 Value Destroyed (542) 542 Prototype IDs (2) 40 Alien Tech Used (0) 0 Bonus (0) 0 TOTAL SCORE: 1617 Bonus ------- None Cogmind --------- Core Integrity 0/400 Matter 267/300 Energy 19/100 System Corruption 4% Temperature Cool (9) Movement Rolling (185) Ox7 Location -9/Materials Parts ------- > --- POWER (1) -------- (None) > --- PROPULSION (3) --- Wheel > --- UTILITY (3) ------ Huge Storage Unit > --- WEAPON (2) ------- (None) > --- INVENTORY (25) --- Aluminum Leg Targeting Computer Light EM Pulse Cannon Light EM Pulse Cannon Grenade Launcher Mining Laser Plasma Cutter Peak State ------------ > --- POWER ------------ Light Nuclear Core > --- PROPULSION ------- Light Treads Light Treads Light Treads > --- UTILITY ---------- Improved Heat Sink Huge Storage Unit Sensor Array > --- WEAPON ----------- Light EM Pulse Cannon Light EM Pulse Cannon > --- INVENTORY -------- Ion Engine Light Treads Wheel Wheel Targeting Computer Light EM Pulse Cannon Light EM Pulse Cannon EMP Blaster Grenade Launcher Mining Laser [Rating: 16] Favorites ----------- Power Light Nuclear Core Engine Ion Engine Power Core Light Nuclear Core Propulsion Light Treads Treads Light Treads Wheel Wheel Utility Improved Heat Sink Device Improved Heat Sink Storage Huge Storage Unit Weapon Light EM Pulse Cannon Energy Gun Small Laser Energy Cannon Light EM Pulse Cannon Ballistic Gun Light Assault Rifle Launcher EMP Blaster Build | -11 -10 -9 ------- Run | Yrd Mat Mat Slots Evolved 2 | . . 2 Power . | . . . Propulsion 1 | . . 1 Utility 1 | . . 1 Weapon . | . . . Parts Attached 22 | 7 6 9 Power 3 | 1 2 . Engine 2 | 1 1 . Core 1 | . 1 . Reactor . | . . . Propulsion 6 | 2 . 4 Treads 4 | 2 . 2 Leg . | . . . Wheel 2 | . . 2 Hover . | . . . Flight . | . . . Utility 5 | 2 2 1 Device 3 | 1 1 1 Storage 2 | 1 1 . Processor . | . . . Hackware . | . . . Protection . | . . . Artifact . | . . . Weapon 8 | 2 2 4 Energy Gun 1 | 1 . . Energy Cannon 4 | . 2 2 Ballistic Gun 2 | 1 . 1 Ballistic Cannon . | . . . Launcher 1 | . . 1 Special Weapon . | . . . Impact Weapon . | . . . Slashing Weapon . | . . . Piercing Weapon . | . . . Special Melee Weapon . | . . . Unidentified Prototypes . | . . . Corrupted Parts 1 | . . 1 System Corruption 4 | . . 4 Parts Lost 14 | . 1 13 Power 2 | . . 2 Propulsion 5 | . . 5 Utility 3 | . 1 2 Weapon 4 | . . 4 Highest Loss Streak 7 | . 1 7 To Critical Strikes . | . . . Average Backups 8 | 2 8 10 Power 1 | . 1 . Propulsion 2 | . 2 2 Utility . | . . 1 Weapon 4 | . 4 4 Tool/Special . | . . . Unused Backups 8 | . 3 5 Power 2 | . 2 . Propulsion 1 | . . 1 Utility 1 | . . 1 Weapon 3 | . 1 2 Tool/Special 1 | . . 1 Average Slot Usage (%) 96 | . 98 85 Engine 4 | . 4 2 Core 8 | . 9 7 Treads 27 | . 28 27 Device 14 | . 12 17 Storage 13 | . 13 11 Energy Gun 1 | . 2 . Energy Cannon 21 | . 23 15 Ballistic Gun 2 | . 2 2 Peak Build Rating 16 | 9 14 16 Average Rating 12 | 7 12 13 On Entrance 7 | . 9 14 Naked Turns . | . . . Heaviest Build 95 | 13 94 95 Greatest Support 60 | 40 40 60 Greatest Overweight (x) 7 | . 2 7 Average Overweight (x) . | . . 1 Largest Inventory Capacity 25 | 8 25 25 Average Capacity 18 | 7 17 25 Most Carried 12 | 5 12 12 Average Carried 8 | 2 8 10 Final Capacity 25 | 8 25 25 Final Carried 12 | 5 12 7 Class Distribution -------------------- 100% | Mutant Dominant Class ---------------- Mutant | -10/Materials Mutant | -9/Materials Resources | -11 -10 -9 ----------- Run | Yrd Mat Mat Matter Collected 425 | 282 60 83 Remotely . | . . . Salvage Created 999 | 160 498 341 Parts 52 | 9 17 26 Haulers Intercepted . | . . . Recyclers Shooed 5 | . 3 2 Parts Field Recycled . | . . . Retrieved Matter . | . . . Parts Self-Destructed . | . . . Prevented . | . . . Kills | -11 -10 -9 ------- Run | Yrd Mat Mat Combat Hostiles Destroyed 16 | . 9 7 Guns 6 | . 4 2 Cannons 6 | . 2 4 AOE 3 | . 3 . Classes Destroyed 8 | 3 3 2 Worker 3 | 2 . 1 Builder 2 | . . 2 Tunneler 2 | 1 . 1 Recycler 3 | 1 2 . Operator 1 | . 1 . Swarmer 5 | . 3 2 Grunt 10 | . 6 4 Sentry 1 | . . 1 Best Kill Streak 5 | 2 5 3 Combat Bots Only 3 | . 3 2 Max Kills in Single Turn 3 | 1 3 2 Gunslinging . | . . . Exploded 3 | . 3 . Melee . | . . . Uniques/NPCs Destroyed . | . . . Combat | -11 -10 -9 -------- Run | Yrd Mat Mat Hostile Shots Fired 225 | . 47 178 Missed 69 | . 16 53 Hits 156 | . 31 125 Projectile 156 | . 31 125 Critical Strikes 3 | . . 3 Damage Taken 1867 | . 422 1445 Core 467 | . 59 408 Absorbed by Shields . | . . . Regen/Repaired (Parts) 31 | . . 31 Core Remaining (%) 88 | 100 76 . Volleys Fired 79 | 12 29 38 Largest 2 | 2 2 2 Hottest 112 | 60 112 112 Shots Fired 127 | 18 58 51 Gun 71 | 18 34 19 Cannon 51 | . 24 27 Launcher 5 | . . 5 Special . | . . . Kinetic 48 | 12 17 19 Thermal 23 | 6 17 . Explosive . | . . . Electromagnetic 56 | . 24 32 Robot Hit Streak 11 | 3 7 11 Robot Miss Streak 4 | 2 4 4 Penetration Max . | . . . Secondary Targets . | . . . Shots Hit Robots 77 | 10 35 32 Core Hits 40 | 6 19 15 Critical Kills . | . . . Critical Parts Destroyed 1 | . . 1 Critical Strikes 1 | . . 1 Destroy 1 | . . 1 Melee Attacks . | . . . Impact . | . . . Slashing . | . . . Piercing . | . . . Sneak Attacks . | . . . Combat Hostiles . | . . . Follow-up Attacks . | . . . Damage Inflicted 1601 | 96 688 817 Guns 532 | 96 202 234 Cannons 732 | . 349 383 Explosions 243 | . 70 173 Melee . | . . . Ramming 94 | . 67 27 Kinetic 378 | 50 94 234 Thermal 267 | 46 178 43 Explosive . | . . . Electromagnetic 862 | . 349 513 Impact . | . . . Slashing . | . . . Piercing . | . . . Highest Corruption 4 | . . 4 Average Corruption 4 | . . 4 Corruption Purged . | . . . Corruption Blocked . | . . . Effects 1 | . . 1 Message Errors 1 | . . 1 Overload Shots . | . . . Overflow Damage . | . . . Projectiles . | . . . Explosions . | . . . Melee . | . . . Knockbacks . | . . . Impact . | . . . Kinetic . | . . . Secondary . | . . . Self-Inflicted Damage 43 | . 20 23 Shots 2 | . 1 1 Rammed 18 | . 14 4 Targets Rammed 19 | . 15 4 Kicked . | . . . Crushed 1 | . 1 . Highest Temperature 126 | 20 126 54 Average Temperature 28 | 14 38 14 Received Heat Transfer 624 | . 207 417 Siege Activations . | . . . Martial Activations . | . . . Shielding Activations . | . . . Robots Disrupted . | . . . Combat Hostiles . | . . . Robots Corrupted 1 | . . 1 Combat Hostiles 1 | . . 1 Parts Fried 5 | . 5 . Impact Corruptions . | . . . Robots Melted . | . . . Combat Hostiles . | . . . Parts Melted . | . . . Heat Transferred 550 | 100 350 100 Parts Sabotaged . | . . . Parts Stolen . | . . . Parts Stripped . | . . . Power Chain Reactions 2 | . 1 1 Alert | -11 -10 -9 ------- Run | Yrd Mat Mat Maximum Alert Level . | . . . Low Security (%) 100 | 100 100 100 Level 1 . | . . . Level 2 . | . . . Level 3 . | . . . Level 4 . | . . . Level 5 . | . . . High Security . | . . . Max Security . | . . . Peak Influence 73 | 5 73 56 Initial . | . . . Average 9 | . 9 12 Influence Increases 490 | 20 277 193 Destroy 0b10 Robot/C 320 | . 180 140 Destroy 0b10 Robot/NC 55 | 20 15 20 Destroy Leader 70 | . 40 30 Successful Hack 9 | . 9 . Disable Machine 30 | . 30 . Destroy Structure 6 | . 3 3 Influence Decreases 490 | 20 277 193 Time Decay 355 | 20 247 88 Lost Part 115 | . 10 105 Purge Threat 20 | . 20 . Squads Dispatched 2 | . 1 1 Investigation 2 | . 1 1 Extermination . | . . . Reinforcement . | . . . Assault . | . . . Garrison . | . . . Intercept . | . . . Searches Triggered . | . . . Construction Impeded . | . . . Haulers Reinforced . | . . . Active Scanning Responses . | . . . Cargo Convoy Interrupts . | . . . Stealth | -11 -10 -9 --------- Run | Yrd Mat Mat Distress Signals 1 | . . 1 Communications Jammed . | . . . Distress Signals . | . . . Times Spotted 32 | . 16 16 Peak Tracking Total 6 | . 4 6 Tactical Retreats . | . . . Traps | -11 -10 -9 ------- Run | Yrd Mat Mat Traps Triggered 2 | . 1 1 Indirectly . | . . . Trap Hack Attempts . | . . . Triggered . | . . . Disarmed . | . . . Reprogrammed . | . . . Reused . | . . . Traps Extracted . | . . . Installed . | . . . Triggered . | . . . Machines | -11 -10 -9 ---------- Run | Yrd Mat Mat Machines Disabled 2 | . 2 . Max in Single Turn 1 | . 1 . Machines Repaired . | . . . Machines Dismantled . | . . . Machines Sabotaged . | . . . Overloaded Fab Kills . | . . . Hacking | -11 -10 -9 --------- Run | Yrd Mat Mat Machines Accessed 5 | . 4 1 Terminals 4 | . 4 . Fabricators . | . . . Repair Stations 1 | . . 1 Recycling Units . | . . . Scanalyzers . | . . . Garrison Access . | . . . Total Hacks 14 | . 11 3 Successful 8 | . 6 2 Failed 6 | . 5 1 Catastrophic . | . . . Database Lockouts . | . . . Manual 2 | . 2 . Terminals 11 | . 11 . Fabricators . | . . . Repair Stations 3 | . . 3 Recycling Units . | . . . Scanalyzers . | . . . Garrison Access . | . . . Terminal Hacks 6 | . 6 . Prototype ID Bank 1 | . 1 . Alert Level 2 | . 2 . Unreport Threat 1 | . 1 . Locate Traps 1 | . 1 . Zone Layout 1 | . 1 . Fabricator Hacks . | . . . Repair Station Hacks 2 | . . 2 Scan Component 1 | . . 1 Repair 1 | . . 1 Recycling Unit Hacks . | . . . Scanalyzer . | . . . Garrison Access Hacks . | . . . Unauthorized Hacks . | . . . Terminals . | . . . Fabricators . | . . . Repair Stations . | . . . Recycling Units . | . . . Scanalyzers . | . . . Garrison Access . | . . . Data Cores Recovered . | . . . Used . | . . . Hacking Detections 2 | . 2 . Full Trace Events . | . . . Feedback Events . | . . . Feedback Blocked . | . . . Robot Schematics Acquired . | . . . Robots Built . | . . . Authchips . | . . . Time . | . . . Total Robot Build Rating . | . . . Part Schematics Acquired . | . . . Parts Built . | . . . Authchips . | . . . Time . | . . . Total Part Build Rating . | . . . Parts Repaired 1 | . . 1 Time 32 | . . 32 Parts Recycled . | . . . Recycled Matter . | . . . Retrieved Matter . | . . . Retrieved Components . | . . . Parts Scanalyzed . | . . . Part Schematics Acquired . | . . . Parts Damaged . | . . . Bothacking | -11 -10 -9 ------------ Run | Yrd Mat Mat Used RIF Installer . | . . . Robots Hacked . | . . . Non-combat . | . . . Combat . | . . . Robot Hacks Applied . | . . . Relay Couplers Released . | . . . Fabnet Peak Effective % . | . . . Robots Rewired . | . . . Allies Hacked . | . . . Hacks Repelled . | . . . Allies | -11 -10 -9 -------- Run | Yrd Mat Mat Total Allies . | . . . Largest Group . | . . . Highest-Rated Group . | . . . Highest-Rated Ally . | . . . Total Orders . | . . . Ally Attacks . | . . . Total Damage . | . . . Kills . | . . . Allies Corrupted . | . . . Allies Melted . | . . . Intel | -11 -10 -9 ------- Run | Yrd Mat Mat Active Infowar (turns) 792 | 114 161 517 Sensors 517 | . . 517 Terrain 275 | 114 161 . Robot Analysis Total . | . . . Derelict Logs Recovered . | . . . Drone Launches . | . . . Drone Recoveries . | . . . Exploration | -11 -10 -9 ------------- Run | Yrd Mat Mat Turns Passed 2681 | 160 1992 529 Spaces Moved 1049 | 77 823 149 Core 5 | 5 . . Treads 1037 | 72 823 142 Legs . | . . . Wheels 7 | . . 7 Hover . | . . . Flight . | . . . Fastest Speed 50 | 50 160 125 Average Speed 221 | 152 223 248 Slowest Speed 480 | 160 320 480 Overloaded Moves . | . . . Propulsion Burnouts . | . . . Robots Hopped . | . . . Potential Cave-ins . | . . . Cave-ins Triggered . | . . . Exploration Rate (%) 31 | 5 72 16 Regions Visited 2 Branch Regions . Pre-discovered Areas . | . . . Known Exits Taken . | . . . Unknown Exits Taken 2 | 1 1 . Scrap Searched . | . . . Spaces Dug . | . . . Terrain Destroyed 5 | . 2 3 Melee . | . . . Projectile . | . . . AOE 5 | . 2 3 Terrain Rammed . | . . . Walls Destroyed . | . . . Machines Disabled . | . . . Actions | -11 -10 -9 --------- Run | Yrd Mat Mat Total 1263 | 100 910 253 Wait 61 | . 15 46 Move 1047 | 76 822 149 Hop . | . . . Pick Up 24 | 5 16 3 Fast Attach 9 | 7 1 1 Attach 11 | . 1 10 Detach 2 | . . 2 Swap 4 | . 4 . Drop 7 | . 7 . Fire 79 | 12 29 38 Melee . | . . . Ram 2 | . . 2 Kick . | . . . Crush 17 | . 15 2 Escape Stasis . | . . . Rewire . | . . . Trap . | . . . Miscellaneous . | . . . Route ------- -11/Scrapyard -10/Materials (discovered 2 exits: *Mat / [*Min]) -9/Materials History --------- Turn | Location | Event 5 | -11/Scrapyard | Discovered new exit (range 15) 161 | -11/Scrapyard | Entered Materials 203 | -10/Materials | Discovered new exit (range 7) 314 | -10/Materials | Build established: Mutant 2134 | -10/Materials | Discovered new exit (range 3) 2153 | -10/Materials | Entered another Materials area 2153 | -9/Materials | Evolved 2 slots: Propulsion x1, Utility x1 2412 | -9/Materials | Repaired Lgt. EM Pulse Cannon 2549 | -9/Materials | Lost 5 parts (1p2n1u1w) 2644 | -9/Materials | Core integrity fell below 50% 2670 | -9/Materials | Core integrity fell below 20% 2682 | -9/Materials | Destroyed by Y-45 Defender with Heavy Assault Rifle Last Messages --------------- Y-45 Defender suffers critical hit (Burn). M-13 Machinist repairs Y-45 Defender. Hvy. Assault Rifle destroyed. EMP Blaster destroyed. K-01 Serf collects debris. R-06 Scavenger collects Corrupted Terrain Scan Processor. M-13 Machinist repairs Y-45 Defender. K-01 Serf collects debris. Slammed into K-01 Serf. M-13 Machinist repairs Y-45 Defender. Slammed into K-01 Serf. K-01 Serf destroyed. M-13 Machinist repairs Y-45 Defender Beam Rifle. K-01 Serf collects debris. Sensor Array destroyed. K-01 Serf collects debris. Wheel destroyed. Critical hit (Burn: +37). K-01 Serf collects debris. Map ----- +----------------------------------------------------+ | ????????? % # ! #?????????????? | | ???????????############ # """ #?????????????? | | ?????????????#####??#?#% # """ #?????????????? | | ?????????????# # %# """ #?????????????? | | ?????????????# !! # % # #?????????????? | | ?????????????# !! + %##########?????????????? | | ?????????????# # #????##????????????????? | | ?????????????# # % #??"""#????????????????? | | ?????????????########## ###"T"###??????????????? | | ?????????????#########| #??????????????? | | ?????????????# = =] #%= #??????????????? | | ??????????????? ] ? # #??????????????? | | ????????????????? ?#% "" #??????????????? | | ??????????????????#/##! """ #??????????????? | | ?????????# ##### """ #??????????????? | | ?????????# =! "" #??????????????? | | ?????????# ### k%! " #??????????????? | | ????????????????# %! #??????????????? | | ????????????????# = Y #??????????????? | | ????????????????# Y%= #??????????????? | | ????????????????##+##### ########??????????????? | | ????????????????# ????#% %# !#??????????????? | | ????????????????#??????# a# #??????????????? | | ???????????????????????+ ; """ #??????????????? | | ???????????????????????# # """ #??????????????? | | ???????????????????????# @ #?""" ???????????????? | | ???????????????????????# #?? ????????????????? | | ???????????????????????# #????##???????????????? | | ???????????????????????# #?????????????????????? | | ???????????????????????# #?????????????????????? | | ???????????????????????# #?????????????????????? | | ???????????????????????# #?????????????????????? | | ???????????????????????# #?????????????????????? | | ???????????????????????# #?????????????????????? | | ??????????????????????? ?????????????????????? | | ??????????????????????? Y ?????????????????????? | | ??????????????????????? ?????????????????????? | | ??????????????????????? ?????????????????????? | | ??????????????????????? ?????????????????????? | | ???????????????????????# #?????????????????????? | | ???????????????????????? ??????????????????????? | | ?????????????????????????????????????????????????? | | ?????????????????????????????????????????????????? | | ?????????????????????????????????????????????????? | | ?????????????????????????????????????????????????? | | ?????????????????????????????????????????????????? | | ?????????????????????????????????????????????????? | | ?????????????????????????????????????????????????? | | ?????????????????????????????????????????????????? | | ?????????????????????????????????????????????????? | +----------------------------------------------------+ Best States ------------- Heat Dissipation 42 Energy Generation 14 Energy Capacity 250 Matter Stores 300 Matter Capacity 300 Sight Range 16 Robot Scan Range 14 Terrain Scan Range 16 Terrain Scan Density 10 Evasion (%) 40 Recoil Reduction 3 Item Schematics ----------------- None Robot Schematics ------------------ None Fabricated ------------ Nothing Repaired ---------- Lgt. EM Pulse Cannon | 55% | -9/Materials Alien Tech Used ----------------- None Achievements -------------- None Challenges ------------ None Game ------ Seed DamperStorageGenerator Manual? 0 Play Time 00:16:50 Cumulative 8.2 hours Start 2025.10.13 @ 20:00:47 End 2025.10.16 @ 00:10:33 Sessions 5 Manual Loads 0 Difficulty Rogue Special Mode None Game No. 13 Rogue 5 Adventurer 8 Explorer 0 Win Type - Total 0 Types 0/0/0/0/0/0/0/0/0/0 Lore% 4 Gallery% 13 Achievement% 17 Wizard Run 0 Options --------- Layout 1 ASCII 0 Keyboard 0 Movement Arrows Keybinds 0 Fullscreen 1 Font 24/Smallcaps Map View 50x40 Zoom Use 0% Tactical HUD 0 Map Filters NONE Filters NONE Steam 1 RUN: c319c974-047c-472e-b775-2f7b3a3fd4e9